Workbook

Sheet NSU
B1: Riina Kerola | E1: 22.11.1995 Tampere
B2: SUPERPESIS | E2: Runkosarja | I2: Kärkilyönnit (KL), pesänvälit | Q2: Runkosarja | U2: Ylempi loppusarja | Z2: Alempi loppusarja | AG2: Arvo-ottelut ja mitalit
B3: Vuosi | C3: Sija | D3: Seura | E3: OTT | F3: KUN | G3: LÖI | H3: TOI | I3: KL | J3: 0 > 1 | K3: 1 > 2 | L3: 2 > 3 | M3: 3 > k | N3: KL-% | P3: LÖI | Q3: TOI | R3: L+T | S3: KL | U3: OTT | V3: KUN | W3: LÖI | X3: TOI | Y3: KL | Z3: OTT | AA3: KUN | AB3: LÖI | AC3: TOI | AD3: KL | AE3: IL | AF3: LL | AG3: Halli | AH3: K | AI3: H | AJ3: P
B4: 2013 | D4: Virkiä 2 | F4: ykköspesis
B5: 2014 | D5: Virkiä 2 | F5: ykköspesis
B6: 2014 | C6: 1. | D6: Virkiä | E6: 12 | F6: 0 | G6: 2 | H6: 4 | I6: 19 | J6: 8 | K6: 5 | L6: 4 | M6: 2 | N6: 34.5 % | O6: =PRODUCT(I6/N6) -> 55.07246377 | U6: 10 | V6: 1 | W6: 2 | X6: 2 | Y6: 14 | AH6: 1
B7: 2015 | C7: 1. | D7: Virkiä | E7: 13 | F7: 0 | G7: 4 | H7: 4 | I7: 26 | J7: 11 | K7: 8 | L7: 3 | M7: 4 | N7: 47.3 % | O7: 55 | AH7: 1
B8: 2016 | C8: 6. | D8: SMJ | E8: 22 | F8: 1 | G8: 3 | H8: 2 | I8: 40 | J8: 15 | K8: 12 | L8: 9 | M8: 4 | N8: 35.1 % | O8: 114 | U8: 3 | V8: 0 | W8: 0 | X8: 0 | Y8: 5
B9: 2017 | C9: 6. | D9: SMJ | E9: 26 | F9: 0 | G9: 20 | H9: 4 | I9: 66 | J9: 24 | K9: 7 | L9: 15 | M9: 20 | N9: 46.5 % | O9: 142 | U9: 4 | V9: 0 | W9: 4 | X9: 0 | Y9: 6
B10: 2018 | C10: 5. | D10: SMJ | E10: 25 | F10: 0 | G10: 18 | H10: 7 | I10: 55 | J10: 17 | K10: 5 | L10: 15 | M10: 18 | N10: 39.9 % | O10: 138 | U10: 3 | V10: 0 | W10: 1 | X10: 1 | Y10: 5
B11: 2019 | C11: 5. | D11: SMJ | E11: 24 | F11: 0 | G11: 18 | H11: 2 | I11: 54 | J11: 11 | K11: 9 | L11: 16 | M11: 18 | N11: 43.2 % | O11: 125 | U11: 4 | V11: 0 | W11: 0 | X11: 0 | Y11: 6
B12: 2020 | C12: 4. | D12: Virkiä | E12: 20 | F12: 0 | G12: 17 | H12: 3 | I12: 40 | J12: 1 | K12: 8 | L12: 14 | M12: 17 | N12: 49.4 % | O12: 81 | U12: 8 | V12: 0 | W12: 5 | X12: 0 | Y12: 9
B13: 2021 | C13: 4. | D13: Virkiä | E13: 23 | F13: 3 | G13: 39 | H13: 7 | I13: 66 | J13: 1 | K13: 2 | L13: 21 | M13: 42 | N13: 63.5 % | O13: 104 | P13: 10. | U13: 10 | V13: 0 | W13: 7 | X13: 1 | Y13: 14
B14: 2022 | C14: 3. | D14: Virkiä | E14: 22 | F14: 1 | G14: 16 | H14: 3 | I14: 39 | J14: 4 | K14: 6 | L14: 12 | M14: 17 | N14: 48.8 % | O14: 80 | U14: 11 | V14: 0 | W14: 6 | X14: 0 | Y14: 12 | AJ14: 1
B15: 2023 | C15: 3. | D15: Virkiä | E15: 24 | F15: 0 | G15: 30 | H15: 3 | I15: 51 | J15: 1 | K15: 4 | L15: 16 | M15: 30 | N15: 47.7 % | O15: 107 | U15: 10 | V15: 0 | W15: 13 | X15: 1 | Y15: 20 | AJ15: 1
B16: 2024 | C16: 2. | D16: Virkiä | E16: 23 | F16: 2 | G16: 44 | H16: 5 | I16: 57 | J16: 1 | K16: 2 | L16: 8 | M16: 46 | N16: 50.0 % | O16: 114 | P16: 7. | R16: 9. | U16: 11 | V16: 0 | W16: 17 | X16: 0 | Y16: 23 | AI16: 1
B17: Yhteensä | E17: =SUM(E4:E16) -> 234 | F17: 7 | G17: 211 | H17: 44 | I17: 513 | J17: 94 | K17: 68 | L17: 133 | M17: 218 | N17: =PRODUCT(I17/O17) -> 46.0 % | O17: =SUM(O4:O16) -> 1115.072464 | U17: 74 | V17: 1 | W17: 55 | X17: 5 | Y17: 114 | Z17: 0 | AA17: 0 | AB17: 0 | AC17: 0 | AD17: 0 | AE17: 0 | AF17: 0 | AG17: 0 | AH17: 2 | AI17: 1 | AJ17: 2
B18: Pesispörssi | D18: =SUM(F17:H17)+((I17-F17-G17)/3)+(E17/3)+(AE17*25)+(AF17*25)+(AG17*10)+(AH17*25)+(AI17*20)+(AJ17*15) -> 538.3
B20: URA SUPERISSA | E20: OTT | F20: KUN | G20: LÖI | H20: TOI | I20: KL | K20: ka/L | L20: ka/T | M20: ka/KL | N20: KL-% | P20: ENSIMMÄISET
B21: Runkosarja | E21: =PRODUCT(E17) -> 234 | F21: =PRODUCT(F17) -> 7 | G21: =PRODUCT(G17) -> 211 | H21: =PRODUCT(H17) -> 44 | I21: =PRODUCT(I17) -> 513 | K21: =PRODUCT((F21+G21)/E21) -> 0.93 | L21: =PRODUCT(H21/E21) -> 0.19 | M21: =PRODUCT(I21/E21) -> 2.19 | N21: =PRODUCT(N17) -> 46.0 % | O21: =PRODUCT(O17) -> 1115.072464 | P21: Ottelu | R21: 25.05. 2014 VuVe - Virkiä 0-2 (2-7, 0-4) | AB21: 1. ottelu | AD21: 18 v 6 kk 3 pv
B22: Ylempi loppusarja | E22: =SUM(U17) -> 74 | F22: =SUM(V17) -> 1 | G22: =SUM(W17) -> 55 | H22: =SUM(X17) -> 5 | I22: =SUM(Y17) -> 114 | K22: =PRODUCT((F22+G22)/E22) -> 0.76 | L22: =PRODUCT(H22/E22) -> 0.07 | M22: =PRODUCT(I22/E22) -> 1.54 | N22: =PRODUCT(I22/O22) -> 36.8 % | O22: 310 | P22: Lyöty | R22: 09.07. 2014 Virkiä - Lukko 2-0 (7-0, 6-0) | AB22: 8. ottelu | AD22: 18 v 7 kk 17 pv
B23: Alempi loppusarja | P23: Tuotu | R23: 29.05. 2014 Virkiä - Pesä Ysit 2-0 (5-1, 16-0) | AB23: 2. ottelu | AD23: 18 v 6 kk 7 pv
B24: KAIKKI | E24: =SUM(E21:E23) -> 308 | F24: =SUM(F21:F23) -> 8 | G24: =SUM(G21:G23) -> 266 | H24: =SUM(H21:H23) -> 49 | I24: =SUM(I21:I23) -> 627 | K24: =PRODUCT((F24+G24)/E24) -> 0.89 | L24: =PRODUCT(H24/E24) -> 0.16 | M24: =PRODUCT(I24/E24) -> 2.04 | N24: =PRODUCT(I24/O24) -> 44.0 % | O24: =SUM(O21:O23) -> 1425.072464 | P24: Kunnari | R24: 16.08. 2014 Virkiä - VuVe 2-0 (5-1, 7-1) | AB24: 13. ottelu | AD24: 18 v 8 kk 25 pv
B26: Seurat | D26: Virkiä = Lapuan Virkiä (1907), kasvattajaseura
D27: SMJ = Seinäjoen Maila-Jussit (1932)

Sheet Arvo-ottelut
B1: ITÄ - LÄNSI - KORTTI
B2: Riina Kerola | C2: 22.11.1995 Tampere
B3: B-TYTÖT | C3: Itä - Länsi, tulos | D3: Joukkue | E3: Seura | G3: V | H3: T | I3: H | J3: Up. | K3: Lj. | L3: Palk. | M3: O | N3: K | O3: L | P3: T | Q3: KL | R3: 1 | S3: 2 | T3: 3 | U3: k | V3: KL-% | W3: Pelinjohtaja | X3: Yleisöä
B4: 19.07. 2014 Seinäjoki | C4: 0-2 (3-11, 2-4) | D4: Länsi | E4: Virkiä | G4: 1 | J4: 3v | K4: 8 | M4: 1 | P4: 1 | Q4: 5/8 | R4: 3/4 | S4: 1/1 | T4: 1/3 | V4: 62.5 % | W4: Sami Österlund | X4: 1682
